lending/lending_fUSD_20250316
["ID","MTS","AMOUNT","RATE_DAILY","PERIOD"]
[356234759,1742113864877,-851.48121036,0.00045,7]
[356234760,1742113864889,-2468.22373007,0.00045,7]
[356234761,1742113864901,-12736.87844838,0.00045,7]
[356234762,1742113864910,-710.00145659,0.00045,14]
[356234763,1742113864922,-1590.87065922,0.00045,14]
[356234764,1742113864932,-151.0,0.00045,120]
[356234765,1742113864942,-151.0,0.00045,120]
[356234766,1742113864951,-383.25993461,0.00045,120]
[356234767,1742113864961,-250.44661902,0.00045,120]
[356234768,1742113864971,-2180.88236941,0.00045,120]
[356234769,1742113864981,-3160.09115793,0.00045,60]
[356234770,1742113864994,-90.69293043,0.00045,60]
[356234771,1742113865004,-941.81506519,0.00045,120]
[356234772,1742113865014,-154.05459811,0.00045,120]
[356234773,1742113865024,-1000.0,0.00045,120]
[356234774,1742113865034,-150.0,0.00045,120]
[356234775,1742113865043,-1000.0,0.00045,120]
[356234776,1742113865054,-285.96750964,0.00045,7]
[356234777,1742113865067,-380.03249036,0.00045,7]
[356234778,1742113865076,-150.0,0.00045,85]
[356234779,1742113865086,-264.46402371,0.00045,2]
[356234780,1742113865098,-58.22457573,0.00045,2]
[356234781,1742113865108,-1375.54589623,0.00045085,2]
[356234782,1742113865119,-145.12576339,0.00045085,2]
[356234783,1742113865129,-136.89423661,0.00045204,120]
[356234784,1742113865141,-363.10576339,0.00045204,120]
[356234785,1742113865151,-500.0,0.00045204,120]
[356234786,1742113865161,-202.7258917,0.00045204,120]
[356234787,1742113865173,-297.2741083,0.00045204,120]
[356234788,1742113865183,-500.0,0.00045204,120]
[356234789,1742113865193,-500.0,0.00045204,120]
[356234790,1742113865203,-500.0,0.00045204,120]
[356234791,1742113865214,-500.0,0.00045204,120]
[356234792,1742113865226,-500.0,0.00045204,2]
[356234793,1742113865236,-500.0,0.00045204,120]
[356234794,1742113865247,-487.88005356,0.00045204,120]
[356234795,1742113865259,-92.45994644,0.00045204,120]
[356234796,1742113865269,-500.0,0.00045204,120]
[356234797,1742113865279,-500.0,0.00045204,120]
[356234798,1742113865288,-500.0,0.00045204,120]
[356234799,1742113865298,-500.0,0.00045204,120]
[356234800,1742113865308,-617.41,0.00045204,120]
[356234801,1742113865318,-512.78,0.00045204,120]
[356234802,1742113865328,-649.74038551,0.00045204,120]
[356234803,1742113865339,-297.26299369,0.00045204,120]
[356234804,1742113865349,-500.0,0.00045204,10]
[356234805,1742113865359,-500.0,0.00045204,120]
[356234806,1742113865369,-171.16896638,0.00045204,120]
[356234807,1742113865380,-500.0,0.00045204,120]
[356234808,1742113865389,-500.0,0.00045204,120]
[356234809,1742113865399,-608.2,0.00045204,120]
[356234810,1742113865409,-958.42,0.00045204,120]
[356234811,1742113865420,-500.0,0.00045204,120]
[356234812,1742113865430,-631.29,0.00045204,120]
[356234813,1742113865441,-438.47702841,0.00045204,120]
[356234814,1742113865451,-500.0,0.00045204,120]
[356234815,1742113865460,-500.0,0.00045204,120]
[356234816,1742113865470,-500.0,0.00045204,120]
[356234817,1742113865479,-873.48,0.00045204,120]
[356234818,1742113865489,-500.0,0.00045204,120]
[356234819,1742113865499,-500.0,0.00045204,120]
[356234820,1742113865510,-500.0,0.00045204,120]
[356234821,1742113865519,-727.99,0.00045204,120]
[356234822,1742113865529,-500.0,0.00045204,120]
[356234823,1742113865540,-544.7,0.00045204,120]
[356234824,1742113865550,-500.0,0.00045204,120]
[356234825,1742113865560,-534.56,0.00045204,120]
[356234826,1742113865570,-500.0,0.00045204,120]
[356234827,1742113865580,-500.0,0.00045204,120]
[356234828,1742113865590,-500.0,0.00045204,120]
[356234829,1742113865600,-500.0,0.00045204,120]
[356234830,1742113865609,-611.3,0.00045204,120]
[356234831,1742113865619,-1660.0,0.00045204,120]
[356234832,1742113865629,-500.0,0.00045204,120]
[356234833,1742113865639,-500.0,0.00045204,120]
[356234834,1742113865648,-500.0,0.00045204,120]
[356234835,1742113865659,-289.16605433,0.00045204,120]
[356234836,1742113865671,-210.83394567,0.00045204,120]
[356234837,1742113865680,-500.0,0.00045204,120]
[356234838,1742113865690,-500.0,0.00045204,120]
[356234839,1742113865700,-638.03,0.00045204,120]
[356234840,1742113865710,-688.14,0.00045204,120]
[356234841,1742113865719,-547.37,0.00045204,7]
[356234842,1742113865729,-183.26043836,0.00045205,120]
[356234843,1742113865740,-500.0,0.00045205,120]
[356234844,1742113865749,-537.79,0.00045205,120]
[356234845,1742113865759,-500.0,0.00045205,120]
[356234846,1742113865768,-164.42896552,0.00045205,120]
[356234847,1742113865777,-1024.83,0.00045205,120]
[356234848,1742113865787,-500.0,0.00045205,120]
[356234849,1742113865800,-500.0,0.00045205,120]
[356234850,1742113865809,-547.02,0.00045205,120]
[356234851,1742113865823,-990.9,0.00045205,120]
[356234852,1742113865833,-500.0,0.00045205,120]
[356234853,1742113865842,-882.55,0.00045205,120]
[356234854,1742113865853,-266.15728521,0.00045205,120]
[356234855,1742113865863,-500.0,0.00045205,120]
[356234856,1742113865873,-500.0,0.00045205,120]
[356234857,1742113865883,-625.31,0.00045205,120]
[356234858,1742113865893,-2195.71,0.00045205,2]
[356234859,1742113865902,-428.42537632,0.00045205,120]
[356234860,1742113865911,-500.0,0.00045205,120]
[356234861,1742113865921,-381.42459209,0.00045205,120]
[356234862,1742113865931,-2032.54817809,0.00045222,2]
[356234863,1742113865940,-2110.0,0.000453,30]
[356234864,1742113865949,-999.75741721,0.00045321,30]
[356234865,1742113865959,-2009.46039114,0.00045477,120]
[356234866,1742113865968,-1404.04179027,0.00045477,120]
[356234867,1742113865978,-500.0,0.00045478,120]
[356234868,1742113865988,-500.0,0.00045478,120]
[356234869,1742113865998,-500.0,0.00045478,120]
[356234870,1742113866008,-500.0,0.00045478,120]
[356234871,1742113866018,-500.0,0.00045478,120]
[356234872,1742113866027,-466.38252098,0.00045478,120]
[356234873,1742113866037,-500.0,0.00045478,120]
[356234874,1742113866046,-500.0,0.00045478,2]
[356234875,1742113866056,-500.0,0.00045478,120]
[356234876,1742113866066,-580.34,0.00045478,120]
[356234877,1742113866076,-500.0,0.00045478,120]
[356234878,1742113866085,-500.0,0.00045478,120]
[356234879,1742113866095,-500.0,0.00045478,120]
[356234880,1742113866105,-500.0,0.00045478,120]
[356234881,1742113866115,-617.41,0.00045478,120]
[356234882,1742113866126,-512.78,0.00045478,120]
[356234883,1742113866135,-500.0,0.00045478,10]
[356234884,1742113866145,-500.0,0.00045478,120]
[356234885,1742113866155,-500.0,0.00045478,120]
[356234886,1742113866165,-608.2,0.00045478,120]
[356234887,1742113866175,-958.42,0.00045478,120]
[356234888,1742113866186,-500.0,0.00045478,120]
[356234889,1742113866195,-631.29,0.00045478,120]
[356234890,1742113866206,-500.0,0.00045478,120]
[356234891,1742113866215,-500.0,0.00045478,120]
[356234892,1742113866224,-500.0,0.00045478,120]
[356234893,1742113866234,-873.48,0.00045478,120]
[356234894,1742113866246,-500.0,0.00045478,120]
[356234895,1742113866256,-500.0,0.00045478,120]
[356234896,1742113866266,-500.0,0.00045478,120]
[356234897,1742113866276,-727.99,0.00045478,120]
[356234898,1742113866285,-500.0,0.00045478,120]
[356234899,1742113866295,-544.7,0.00045478,120]
[356234900,1742113866305,-500.0,0.00045478,120]
[356234901,1742113866314,-534.56,0.00045478,120]
[356234902,1742113866324,-316.6002194,0.00045478,120]
[356234903,1742113866335,-500.0,0.00045478,120]
[356234904,1742113866345,-500.0,0.00045478,120]
[356234905,1742113866355,-500.0,0.00045478,120]
[356234906,1742113866365,-611.3,0.00045478,120]
[356234907,1742113866375,-1660.0,0.00045478,120]
[356234908,1742113866386,-500.0,0.00045478,120]
[356234909,1742113866396,-500.0,0.00045478,120]
[356234910,1742113866405,-597.46448577,0.00045478,120]
[356234911,1742113866415,-500.0,0.00045478,120]
[356234912,1742113866425,-500.0,0.00045478,120]
[356234913,1742113866435,-500.0,0.00045478,120]
[356234914,1742113866446,-638.03,0.00045478,120]
[356234915,1742113866455,-688.14,0.00045478,120]
[356234916,1742113866465,-547.37,0.00045478,7]
[356234917,1742113866474,-500.0,0.00045479,120]
[356234918,1742113866484,-537.79,0.00045479,120]
[356234919,1742113866494,-195.90704531,0.00045479,120]
[356234920,1742113866504,-1024.83,0.00045479,120]
[356234921,1742113866514,-297.78115611,0.00045479,120]
[356234922,1742113866523,-500.0,0.00045479,120]
[356234923,1742113866533,-547.02,0.00045479,120]
[356234924,1742113866543,-990.9,0.00045479,120]
[356234925,1742113866554,-500.0,0.00045479,120]
[356234926,1742113866563,-882.55,0.00045479,120]
[356234927,1742113866572,-500.0,0.00045479,120]
[356234928,1742113866582,-500.0,0.00045479,120]
[356234929,1742113866592,-625.31,0.00045479,120]
[356234930,1742113866601,-2195.71,0.00045479,2]
[356234931,1742113866610,-500.0,0.00045479,120]
[356234932,1742113866619,-612.59848298,0.00045479,120]
[356234933,1742113866629,-500.0,0.00045479,120]
[356234934,1742113866639,-150.0,0.000455,120]
[356234935,1742113866648,-839.50957445,0.000455,120]
[356234936,1742113866658,-235.34119,0.000455,120]
[356234937,1742113866668,-313.59,0.00045595,2]
[356234938,1742113866677,-150.0,0.00045659,120]
[356234939,1742113866686,-429.29,0.00045679,7]
[356234940,1742113866695,-2000.0,0.00045679,7]
[356234941,1742113866704,-1000.0,0.00045679,7]
[356234942,1742113866714,-1000.0,0.00045679,7]
[356234943,1742113866723,-1000.0,0.00045679,7]
[356234944,1742113866732,-501.83832421,0.000457,120]
[356234945,1742113866743,-370.16819603,0.00045752,120]
[356234946,1742113866753,-500.0,0.00045752,120]
[356234947,1742113866762,-500.0,0.00045752,120]
[356234948,1742113866772,-500.0,0.00045752,120]
[356234949,1742113866783,-500.0,0.00045752,120]
[356234950,1742113866793,-500.0,0.00045752,120]
[356234951,1742113866802,-500.0,0.00045752,2]
[356234952,1742113866815,-500.0,0.00045752,120]
[356234953,1742113866825,-580.34,0.00045752,120]
[356234954,1742113866835,-500.0,0.00045752,120]
[356234955,1742113866844,-500.0,0.00045752,120]
[356234956,1742113866853,-500.0,0.00045752,120]
[356234957,1742113866863,-554.22649135,0.00045752,120]
[356234958,1742113866906,-617.41,0.00045752,120]
[356234959,1742113866915,-512.78,0.00045752,120]
[356234960,1742113866925,-500.0,0.00045752,10]
[356234961,1742113866934,-500.0,0.00045752,120]
[356234962,1742113866944,-500.0,0.00045752,120]
[356234963,1742113866954,-608.2,0.00045752,120]
[356234964,1742113866963,-958.42,0.00045752,120]
[356234965,1742113866973,-500.0,0.00045752,120]
[356234966,1742113866983,-631.29,0.00045752,120]
[356234967,1742113866993,-500.0,0.00045752,120]
[356234968,1742113867003,-500.0,0.00045752,120]
[356234969,1742113867012,-500.0,0.00045752,120]
[356234970,1742113867022,-873.48,0.00045752,120]
[356234971,1742113867031,-500.0,0.00045752,120]
[356234972,1742113867040,-500.0,0.00045752,120]
[356234973,1742113867050,-500.0,0.00045752,120]
[356234974,1742113867059,-727.99,0.00045752,120]
[356234975,1742113867068,-194.81348946,0.00045752,120]
[356234976,1742113867078,-544.7,0.00045752,120]
[356234977,1742113867089,-629.58381348,0.00045752,120]
[356234978,1742113867098,-534.56,0.00045752,120]
[356234979,1742113867108,-500.0,0.00045752,120]
[356234980,1742113867118,-500.0,0.00045752,120]
[356234981,1742113867127,-500.0,0.00045752,120]
[356234982,1742113867137,-611.3,0.00045752,120]
[356234983,1742113867146,-1660.0,0.00045752,120]
[356234984,1742113867156,-327.83913913,0.00045752,120]
[356234985,1742113867166,-500.0,0.00045752,120]
[356234986,1742113867175,-500.0,0.00045752,120]
[356234987,1742113867185,-500.0,0.00045752,120]
[356234988,1742113867195,-500.0,0.00045752,120]
[356234989,1742113867205,-638.03,0.00045752,120]
[356234990,1742113867215,-688.14,0.00045752,120]
[356234991,1742113867224,-547.37,0.00045752,7]
[356234992,1742113867234,-500.0,0.00045753,120]
[356234993,1742113867244,-537.79,0.00045753,120]
[356234994,1742113867254,-1024.83,0.00045753,120]
[356234995,1742113867263,-500.0,0.00045753,120]
[356234996,1742113867273,-547.02,0.00045753,120]
[356234997,1742113867282,-990.9,0.00045753,120]
[356234998,1742113867292,-571.11558128,0.00045753,120]
[356234999,1742113867302,-882.55,0.00045753,120]
[356235000,1742113867311,-630.54514399,0.00045753,120]
[356235001,1742113867321,-500.0,0.00045753,120]
[356235002,1742113867330,-625.31,0.00045753,120]
[356235003,1742113867339,-2195.71,0.00045753,2]
[356235004,1742113867349,-500.0,0.00045753,120]
[356235005,1742113867358,-217.18103484,0.00045767,21]
[356235006,1742113867367,-2110.0,0.000458,30]
[356235007,1742113867377,-1255.23,0.00045919,8]
[356235008,1742113867386,-2009.46039114,0.00045966,120]
[356235009,1742113867396,-1404.04179027,0.00045966,120]
[356235010,1742113867405,-23167.49,0.00045992,8]
[356235011,1742113867414,-31708.39343148,0.00045992,8]
[356235012,1742113867454,-2182.4495584,0.00045992,8]
[356235013,1742113867465,-856.20926424,0.00045992,8]
[356235014,1742113883482,-163.88,0.00044992,120]
[356235015,1742113892856,-204.64450131,9.8e-05,2]
[356235016,1742113945498,-150.0,9.8e-05,2]
[356235017,1742114009951,-151.73,9.8e-05,2]
[356235018,1742114011409,-151.73,9.8e-05,2]
[356235019,1742114085579,-219.0,9.8e-05,2]
[356235020,1742114091145,-241.56438774,9.8e-05,2]
[356235021,1742114102925,-245.75244979,0.00041095,31]
[356235050,1742115032337,-250.0,0.00019,2]
[356235051,1742115032347,-291.345,0.00021,2]
[356235052,1742115032359,-8.655,0.00021,2]
[356235053,1742115032369,-150.0,0.00021917,2]
[356235054,1742115032378,-150.0,0.00023287,2]
[356235055,1742115032387,-150.0,0.00024657,2]
[356235056,1742115032397,-150.0,0.00026027,2]
[356235057,1742115032409,-294.80856586,0.00026394,2]
[356235058,1742115032419,-150.0,0.00027397,2]
[356235059,1742115032430,-10127.0835,0.000279,2]
[356235060,1742115032440,-2979.96498621,0.00028,2]
[356235061,1742115032457,-1041.76047077,0.00028,2]
[356235062,1742115032469,-3572.19822728,0.00028,2]
[356235063,1742115032479,-150.0,0.00028767,2]
[356235064,1742115032490,-303.12976485,0.000289,5]
[356235065,1742115032501,-185.90246625,0.00030136,2]
[356235066,1742115032511,-219.0,0.00031,2]
[356235067,1742115032521,-303.12976485,0.00031348,6]
[356235068,1742115032531,-153.73,0.000336,2]
[356235069,1742115032540,-303.12976485,0.00033797,6]
[356235070,1742115032550,-150.0,0.00034548,10]
[356235071,1742115032559,-303.12976485,0.00036245,7]
[356235072,1742115032568,-303.12976485,0.00038693,8]
[356235073,1742115032578,-412.08,0.00038939,2]
[356235074,1742115032587,-1999.992,0.0004,120]
[356235075,1742115032597,-202.07,0.00040348,2]
[356235076,1742115032606,-421.26077191,0.00040539,2]
[356235077,1742115032615,-164.3,0.00040906,2]
[356235078,1742115032624,-500.0,0.00041095,31]
[356235079,1742115032634,-527.62997354,0.00041095,31]
[356235080,1742115032642,-10.49498464,0.00041095,31]
[356235081,1742115032654,-489.50501536,0.00041095,31]
[356235082,1742115032663,-500.0,0.00041095,31]
[356235083,1742115032672,-500.0,0.00041095,31]
[356235084,1742115032681,-500.0,0.00041095,31]
[356235085,1742115032690,-483.57498464,0.00041095,31]
[356235086,1742115032702,-16.42501536,0.00041095,31]
[356235087,1742115032710,-500.0,0.00041095,31]
[356235088,1742115032719,-500.0,0.00041095,31]
[356235089,1742115032728,-500.0,0.00041095,31]
[356235090,1742115032738,-500.0,0.00041095,10]
[356235091,1742115032747,-526.9278565,0.00041095,31]
[356235092,1742115032756,-447.0846558,0.00041095,31]
[356235093,1742115032766,-500.0,0.00041095,31]
[356235094,1742115032775,-500.0,0.00041095,31]
[356235095,1742115032784,-500.0,0.00041095,31]
[356235096,1742115032793,-500.0,0.00041095,31]
[356235097,1742115032803,-500.0,0.00041095,31]
[356235098,1742115032812,-370.61,0.00041095,120]
[356235099,1742115032821,-500.0,0.00041095,31]
[356235100,1742115032831,-500.0,0.00041095,31]
[356235101,1742115032841,-500.0,0.00041095,31]
[356235102,1742115032850,-303.12976485,0.00041141,9]
[356235103,1742115032860,-412.08,0.00041203,2]
[356235104,1742115032869,-222.11938232,0.00041369,31]
[356235105,1742115032878,-500.0,0.00041369,31]
[356235106,1742115032887,-500.0,0.00041369,31]
[356235107,1742115032896,-500.0,0.00041369,31]
[356235108,1742115032905,-500.0,0.00041369,31]
[356235109,1742115032914,-500.0,0.00041369,31]
[356235110,1742115032924,-500.0,0.00041369,31]
[356235111,1742115032933,-500.0,0.00041369,31]
[356235112,1742115032943,-500.0,0.00041369,31]
[356235113,1742115032953,-500.0,0.00041369,10]
[356235114,1742115032962,-500.0,0.00041369,31]
[356235115,1742115032972,-500.0,0.00041369,31]
[356235116,1742115032981,-500.0,0.00041369,31]
[356235117,1742115032991,-500.0,0.00041369,31]
[356235118,1742115033001,-500.0,0.00041369,31]
[356235119,1742115033010,-500.0,0.00041369,31]
[356235120,1742115033021,-500.0,0.00041369,31]
[356235121,1742115033031,-500.0,0.00041369,31]
[356235122,1742115033040,-141.22801354,0.00041437,2]
[356235123,1742115033052,-164.92198646,0.00041437,2]
[356235124,1742115033062,-621.52013263,0.00041543,2]
[356235125,1742115033077,-1410.54215506,0.00041543,2]
[356235126,1742115033087,-500.0,0.00041643,31]
[356235127,1742115033097,-436.64956717,0.00041643,31]
[356235128,1742115033107,-547.94064892,0.00041643,31]
[356235129,1742115033116,-445.29679159,0.00041643,31]
[356235130,1742115033128,-54.70320841,0.00041643,31]
[356235131,1742115033138,-445.29679159,0.00041643,31]
[356235132,1742115033149,-54.70320841,0.00041643,31]
[356235133,1742115033159,-242.10479359,0.00041643,31]
[356235134,1742115033170,-257.89520641,0.00041643,31]
[356235135,1742115033180,-219.50479354,0.00041643,31]
[356235136,1742115033191,-280.49520646,0.00041643,31]
[356235137,1742115033201,-241.02934089,0.00041643,31]
[356235138,1742115033212,-258.97065911,0.00041643,31]
[356235139,1742115033221,-421.51934089,0.00041643,10]
[356235143,1742115038260,-141.54023356,0.00041643,10]
[356235145,1742115038270,-500.0,0.00041643,31]
[356235146,1742115038279,-370.32798296,0.00041643,31]
[356235147,1742115038293,-129.67201704,0.00041643,31]
[356235148,1742115038302,-590.89573998,0.00041643,31]
[356235149,1742115038312,-500.0,0.00041643,31]
[356235150,1742115038321,-500.0,0.00041643,31]
[356235151,1742115038334,-500.0,0.00041643,31]
[356235152,1742115038345,-223.06753654,0.00041643,31]
[356235153,1742115038355,-500.0,0.00041643,31]
[356235154,1742115038364,-209.46,0.00041848,2]
[356235155,1742115038375,-2390.074,0.00041916,62]
[356235156,1742115038385,-500.0,0.00041917,31]
[356235157,1742115038394,-251.19,0.00041917,31]
[356235158,1742115038404,-500.0,0.00041917,31]
[356235159,1742115038415,-500.0,0.00041917,31]
[356235160,1742115038425,-500.0,0.00041917,31]
[356235161,1742115038434,-500.0,0.00041917,31]
[356235162,1742115038444,-500.0,0.00041917,31]
[356235163,1742115038453,-500.0,0.00041917,31]
[356235164,1742115038463,-500.0,0.00041917,31]
[356235165,1742115038472,-500.0,0.00041917,31]
[356235166,1742115038481,-500.0,0.00041917,31]
[356235167,1742115038490,-916.17620167,0.00042,14]
[356235168,1742115038502,-654.28209935,0.00042,14]
[356235169,1742115038515,-1280.76,0.00042,14]
[356235170,1742115038529,-1419.85402939,0.00042,14]
[356235171,1742115038546,-728.92766959,0.00042,14]
[356235172,1742115038555,-153.73,0.00042,2]
[356235173,1742115038564,-1078.43,0.00042078,120]
[356235174,1742115038574,-250.0,0.00042093,2]
[356235175,1742115038584,-1000.0,0.00042155,2]
[356235176,1742115038593,-500.0,0.00042191,31]
[356235177,1742115038602,-500.0,0.00042191,31]
[356235178,1742115038612,-351.88224189,0.00042191,31]
[356235179,1742115038623,-148.11775811,0.00042191,31]
[356235180,1742115038634,-215.48837984,0.00042191,31]
[356235181,1742115038645,-284.51162016,0.00042191,31]
[356235182,1742115038655,-487.43191768,0.00042191,31]
[356235183,1742115038665,-500.0,0.00042191,31]
[356235184,1742115038674,-500.0,0.00042191,31]
[356235185,1742115038684,-500.0,0.00042191,31]
[356235186,1742115038694,-60.37153565,0.00042191,31]
[356235187,1742115038705,-439.62846435,0.00042191,31]
[356235188,1742115038714,-200.0,0.00042292,2]
[356235189,1742115038724,-119.87151265,0.00042442,120]
[356235190,1742115038736,-39.33848735,0.00042442,120]
[356235193,1742115038754,-281.78651295,0.00042465,31]
[356235195,1742115038768,-218.21348705,0.00042465,31]
[356235197,1742115038779,-232.94156056,0.00042465,31]
[356235199,1742115038791,-267.05843944,0.00042465,31]
[356235200,1742115038801,-500.0,0.00042465,31]
[356235201,1742115038810,-500.0,0.00042465,31]
[356235202,1742115038820,-500.0,0.00042465,31]
[356235203,1742115038830,-500.0,0.00042465,31]
[356235204,1742115038839,-219.58434314,0.00042465,31]
[356235205,1742115038848,-71.26507077,0.00042465,31]
[356235206,1742115038860,-428.73492923,0.00042465,31]
[356235207,1742115038874,-166.34,0.00042534,2]
[356235208,1742115038885,-500.0,0.00042739,31]
[356235209,1742115038897,-268.76254826,0.00042739,31]
[356235210,1742115038910,-231.23745174,0.00042739,31]
[356235211,1742115038920,-500.0,0.00042739,31]
[356235212,1742115038931,-500.0,0.00042739,31]
[356235213,1742115038941,-500.0,0.00042739,31]
[356235214,1742115038951,-500.0,0.00042739,31]
[356235215,1742115038960,-500.0,0.00042739,31]
[356235216,1742115038970,-436.50546388,0.00043013,31]
[356235217,1742115038979,-500.0,0.00043013,31]
[356235218,1742115038989,-500.0,0.00043013,31]
[356235219,1742115038998,-500.0,0.00043013,31]
[356235220,1742115039009,-575.4335783,0.00043013,31]
[356235221,1742115039018,-500.0,0.00043013,31]
[356235222,1742115039027,-500.0,0.00043013,31]
[356235223,1742115039037,-1062.42,0.0004327,2]
[356235224,1742115039049,-500.0,0.00043287,31]
[356235225,1742115039060,-500.0,0.00043287,31]
[356235226,1742115039069,-500.0,0.00043287,31]
[356235227,1742115039079,-500.0,0.00043287,31]
[356235228,1742115039088,-500.0,0.00043287,31]
[356235229,1742115039098,-200.0,0.0004334,2]
[356235230,1742115039109,-412.08,0.00043467,2]
[356235231,1742115039119,-195.50406311,0.00043561,31]
[356235232,1742115039130,-627.84639032,0.00043561,31]
[356235233,1742115039141,-500.0,0.00043561,31]
[356235234,1742115039152,-500.0,0.00043561,31]
[356235235,1742115039162,-500.0,0.00043561,31]
[356235236,1742115039172,-303.12976485,0.0004359,9]
[356235237,1742115039181,-500.0,0.00043835,120]
[356235238,1742115039191,-500.0,0.00043835,120]
[356235239,1742115039201,-500.0,0.00043835,120]
[356235240,1742115039211,-2032.06228768,0.00043871,2]
[356235241,1742115039221,-649.05756147,0.00044109,120]
[356235242,1742115039230,-500.0,0.00044109,120]
[356235243,1742115039241,-500.0,0.00044109,120]
[356235244,1742115039252,-1568.3014574,0.0004438,4]
[356235245,1742115039261,-500.0,0.00044383,120]
[356235246,1742115039271,-380.33480708,0.00044383,120]
[356235247,1742115039280,-171.57,0.00044564,2]
[356235248,1742115039291,-500.0,0.00044657,120]
[356235249,1742115039300,-500.0,0.00044931,120]
[356235250,1742115039310,-396.19,0.00044992,120]
[356235251,1742115039322,-604.79,0.00045092,120]
[356235252,1742115039332,-500.0,0.00045205,120]
[356235253,1742115039343,-212.85,0.00045351,2]
[356235254,1742115039352,-500.0,0.00045479,120]
[356235255,1742115039361,-522.59938555,0.00045479,120]
[356235256,1742115039371,-10860.98017282,0.0004567,120]
[356235257,1742115039382,-412.08,0.00045731,2]
[356235258,1742115039393,-502.05779348,0.00045752,2]
[356235259,1742115039402,-500.0,0.00045753,120]
[356235260,1742115039416,-921.1882,0.00045762,3]
[356235261,1742115039425,-2003.026,0.00045762,3]
[356235262,1742115039435,-1000.0,0.00045991,120]
[356235263,1742115039444,-1467.67,0.00045992,30]
[356235264,1742115039453,-773.2658173,0.00045996,2]
[356235265,1742115039463,-4257.14539559,0.00045999,8]
[356235266,1742115039475,-2678.83460441,0.00045999,8]
[356235267,1742115039485,-709.40147572,0.00045999,8]
[356235268,1742115039496,-316.14248256,0.00045999,8]
[356235269,1742115039507,-543.48961775,0.00045999,8]
[356235270,1742115039520,-4584.40866984,0.00045999,8]
[356235271,1742115039532,-782.53775413,0.00045999,8]
[356235272,1742115039541,-36.23724587,0.00045999,8]
[356235273,1742115039553,-832.25,0.00045999,8]
[356235274,1742115039565,-5480.42275413,0.00045999,8]
[356235275,1742115039575,-892.95184297,0.00045999,8]
[356235276,1742115039587,-3758.99815703,0.00045999,8]
[356235277,1742115039597,-35539.38174926,0.00046,46]
[356235278,1742115039608,-1805.78019978,0.00046,46]
[356235279,1742115039619,-1771.25319966,0.00046,46]
[356235280,1742115039630,-1756.27846413,0.00046,46]
[356235281,1742115039642,-1346.55037852,0.00046,46]
[356235282,1742115039653,-7780.75600865,0.00046,46]
[356235283,1742115039663,-1000.0,0.00046,30]
[356235284,1742115039673,-162.0534458,0.00046,120]
[356235285,1742115039682,-500.0,0.00046,120]
[356235286,1742115039692,-800.0,0.00046,90]
[356235287,1742115039701,-1603.54401421,0.00046,120]
[356235288,1742115039711,-150.0,0.00046,120]
[356235289,1742115039720,-850.0,0.00046,120]
[356235290,1742115039730,-10809.3653147,0.00046,55]
[356235291,1742115039739,-966.71013687,0.00046,120]
[356235292,1742115039748,-1000.0,0.00046,18]
[356235293,1742115039758,-1000.0,0.00046,18]
[356235294,1742115039767,-500.0,0.00046027,120]
[356235295,1742115039777,-303.12976485,0.00046038,10]